bitfinex-derivatives/quotes_BTCF0:USTF0_20241008
["timestamp","ask_amount","ask_price","bid_price","bid_amount"]
[1728431481482,0.1588,62296.0,62295.0,0.201299]
[1728431482190,0.1668,62296.0,62295.0,0.202299]
[1728431482988,0.1668,62296.0,62295.0,4.202299]
[1728431487287,0.20693354,62296.0,62295.0,4.22534983]
[1728431488387,0.20693354,62296.0,62295.0,4.082299]
[1728431488593,0.1668,62296.0,62295.0,4.082299]
[1728431488793,0.20687077,62296.0,62295.0,4.082299]
[1728431492596,0.25341139,62296.0,62295.0,4.082299]
[1728431496087,0.20687077,62296.0,62295.0,4.082299]
[1728431498502,0.135,62296.0,62295.0,4.202299]
[1728431500700,0.17519024,62296.0,62295.0,4.202299]
[1728431501999,0.17519024,62296.0,62295.0,4.082299]
[1728431505390,0.17514031,62296.0,62295.0,4.082299]
[1728431505793,0.17514031,62296.0,62295.0,4.002]
[1728431506200,0.29514031,62296.0,62295.0,4.002]
[1728431513296,0.78271912,62296.0,62295.0,4.002]
[1728431513608,0.98003608,62296.0,62295.0,4.002]
[1728431513798,1.00313941,62296.0,62295.0,4.002]
[1728431514106,1.00244608,62296.0,62295.0,4.002]
[1728431514612,0.85779544,62296.0,62295.0,4.002]
[1728431514907,1.00244608,62296.0,62295.0,4.002]
[1728431515293,1.93935544,62296.0,62295.0,4.002]
[1728431515498,2.08383561,62296.0,62295.0,4.002]
[1728431515706,1.48383561,62296.0,62295.0,4.002]
[1728431516215,1.33935544,62296.0,62295.0,4.002]
[1728431516813,1.48381357,62296.0,62295.0,4.002]
[1728431517306,1.93935544,62296.0,62295.0,3.82020595]
[1728431518608,2.08376926,62296.0,62295.0,3.82020595]
[1728431520605,1.93935544,62296.0,62295.0,3.82020595]
[1728431521807,2.76164935,62296.0,62295.0,3.44020595]
[1728431522007,2.97374926,62296.0,62295.0,3.44020595]
[1728431522315,2.97343717,62296.0,62295.0,3.44020595]
[1728431522705,2.9220602,62296.0,62295.0,3.33794095]
[1728431523002,2.76164935,62296.0,62295.0,3.33794095]
[1728431523700,2.64164935,62296.0,62295.0,3.33794095]
[1728431523909,2.63925112,62296.0,62295.0,3.33794095]
[1728431524105,2.75925112,62296.0,62295.0,3.33794095]
[1728431525609,2.75983477,62296.0,62295.0,3.33794095]
[1728431526511,2.82983477,62296.0,62295.0,3.33794095]
[1728431526900,2.34827477,62296.0,62295.0,3.33794095]
[1728431527101,1.74827477,62296.0,62295.0,3.33794095]
[1728431527705,2.10907477,62296.0,62295.0,3.33794095]
[1728431528613,1.38747477,62296.0,62295.0,3.33794095]
[1728431528809,2.10907477,62296.0,62295.0,3.33794095]
[1728431529008,1.38747477,62296.0,62295.0,3.33794095]
[1728431529211,2.10907477,62296.0,62295.0,3.33794095]
[1728431530012,2.70907477,62296.0,62295.0,3.33794095]
[1728431530206,2.10907477,62296.0,62295.0,3.33794095]
[1728431531516,2.16068087,62296.0,62295.0,3.33794095]
[1728431531706,2.16068087,62296.0,62295.0,3.25757823]
[1728431531903,3.24224087,62296.0,62295.0,3.25757823]
[1728431532215,2.64224087,62296.0,62295.0,3.25757823]
[1728431532604,3.40265172,62296.0,62295.0,3.25757823]
[1728431533011,3.24224087,62296.0,62295.0,3.25757823]
[1728431533615,2.64224087,62296.0,62295.0,3.25757823]
[1728431534326,2.63964863,62296.0,62295.0,3.25757823]
[1728431535225,3.39996453,62296.0,62295.0,2.52672602]
[1728431535410,3.29899455,62296.0,62295.0,2.15734574]
[1728431535608,3.29899455,62296.0,62295.0,2.03435874]
[1728431536015,3.29899455,62296.0,62295.0,1.91889274]
[1728431536517,3.29899455,62296.0,62295.0,1.71454374]
[1728431538025,3.29899455,62296.0,62295.0,1.51204774]
[1728431538320,3.29899455,62296.0,62295.0,0.94440574]
[1728431539327,3.29881775,62296.0,62295.0,0.68572174]
[1728431539524,3.16563045,62296.0,62295.0,0.57370374]
[1728431539718,3.2974017,62296.0,62295.0,0.38090874]
[1728431540113,3.2974017,62296.0,62295.0,0.15623974]
[1728431540422,0.080305,62290.0,62287.0,0.0037]
[1728431540629,0.080317,62281.0,62280.0,0.0037]
[1728431540824,0.59257125,62281.0,62273.0,0.080327]
[1728431541019,0.441126,62274.0,62273.0,0.080327]
[1728431541221,0.62288091,62274.0,62273.0,0.080327]
[1728431541624,0.080329,62272.0,62271.0,0.0313]
[1728431541836,0.77896016,62272.0,62271.0,0.0313]
[1728431542925,0.741129,62272.0,62271.0,0.0313]
[1728431543131,0.742129,62272.0,62271.0,0.0453]
[1728431544419,0.743129,62272.0,62271.0,0.0543]
[1728431546121,1.618029,62272.0,62271.0,0.0543]
[1728431546526,1.617029,62272.0,62271.0,0.0403]
[1728431546726,1.617029,62272.0,62271.0,0.0423]
[1728431546926,1.618029,62272.0,62271.0,0.0503]
[1728431548127,1.978829,62272.0,62271.0,0.0503]
[1728431551724,1.978829,62272.0,62271.0,0.019]
[1728431552020,1.103929,62272.0,62271.0,0.019]
[1728431552732,1.978829,62272.0,62271.0,0.019]
[1728431553126,1.976829,62272.0,62271.0,0.003]
[1728431553434,1.976829,62272.0,62271.0,0.005]
[1728431553919,1.976829,62272.0,62271.0,0.002]
[1728431554122,1.980829,62272.0,62271.0,0.002]
[1728431554738,0.080336,62266.0,62265.0,0.0037]
[1728431555034,0.080336,62266.0,62263.0,0.11334]
[1728431555035,0.080339,62264.0,62263.0,0.11334]
[1728431555335,0.190339,62264.0,62263.0,0.11334]
[1728431555736,0.2266604,62264.0,62263.0,0.11334]
[1728431555936,0.26883125,62264.0,62263.0,0.11334]
[1728431556323,0.26883125,62264.0,62263.0,0.033]
[1728431556538,0.67894797,62264.0,62263.0,0.033]
[1728431556731,0.67894797,62264.0,62263.0,0.034]
[1728431558629,0.62963125,62264.0,62263.0,0.034]
[1728431561046,0.65240299,62264.0,62263.0,0.034]
[1728431561929,1.01227486,62264.0,62263.0,0.034]
[1728431562432,1.13227486,62264.0,62263.0,0.034]
[1728431562838,1.13227486,62264.0,62263.0,0.001]
[1728431563036,1.13227486,62264.0,62257.0,0.0037]
[1728431563231,0.080349,62256.0,62255.0,0.0328]
[1728431563437,0.26791312,62256.0,62255.0,0.0328]
[1728431564926,0.26791312,62256.0,62255.0,0.11315]
[1728431565329,0.26791312,62256.0,62255.0,0.11715]
[1728431565542,0.31029892,62256.0,62255.0,0.12215]
[1728431565742,0.26862672,62256.0,62255.0,0.12215]
[1728431566641,0.191349,62256.0,62255.0,0.12215]
[1728431566841,0.62942916,62256.0,62255.0,0.12215]
[1728431571734,0.62941384,62256.0,62255.0,0.12215]
[1728431576536,0.54906484,62256.0,62255.0,0.12215]
[1728431584355,0.54906484,62256.0,62255.0,0.14550972]
[1728431585048,0.18826484,62256.0,62255.0,0.14550972]
[1728431585249,0.54906484,62256.0,62255.0,0.14550972]
[1728431586848,0.54928546,62256.0,62255.0,0.14550972]
[1728431590057,0.50765552,62256.0,62255.0,0.14550972]
[1728431592759,0.54958531,62256.0,62255.0,0.14550972]
[1728431596057,0.50765552,62256.0,62255.0,0.14550972]
[1728431596263,0.14685552,62256.0,62255.0,1.58818972]
[1728431596463,0.14685552,62256.0,62255.0,0.14550972]
[1728431596966,0.1472559,62256.0,62255.0,0.62738972]
[1728431598260,0.1472559,62256.0,62255.0,0.14550972]
[1728431606872,0.14717721,62256.0,62255.0,0.14550972]
[1728431607572,0.14717721,62256.0,62255.0,0.08935]
[1728431610181,0.18918719,62256.0,62255.0,0.08935]
[1728431610681,0.14717721,62256.0,62255.0,0.08935]
[1728431611879,0.14717137,62256.0,62255.0,0.08935]
[1728431616978,0.14721224,62256.0,62255.0,0.08935]
[1728431617163,0.18922855,62256.0,62255.0,0.08935]
[1728431619978,0.55002855,62256.0,62255.0,0.08935]
[1728431621968,0.54974101,62256.0,62255.0,0.08935]
[1728431622169,0.5990615,62256.0,62255.0,0.08935]
[1728431623179,0.54974101,62256.0,62255.0,0.08935]
[1728431624083,0.50786632,62256.0,62255.0,0.08935]
[1728431624779,0.54971094,62256.0,62255.0,0.08935]
[1728431625283,0.50786632,62256.0,62255.0,0.08935]
[1728431625582,0.54970922,62256.0,62255.0,0.08935]
[1728431626082,0.4718,62256.0,62255.0,0.08935]
[1728431628384,0.5136424,62256.0,62255.0,0.08935]
[1728431628778,0.54968091,62256.0,62255.0,0.08935]
[1728431629373,0.4718,62256.0,62255.0,0.08935]
[1728431630686,0.111,62256.0,62255.0,0.08935]
[1728431630880,0.4718,62256.0,62255.0,0.08935]
[1728431632886,0.552149,62256.0,62255.0,0.08935]
[1728431633087,0.672149,62256.0,62255.0,0.009]
[1728431633390,0.79910928,62256.0,62255.0,0.009]
[1728431635089,0.79910928,62256.0,62255.0,0.08935]
[1728431639289,0.94364268,62256.0,62255.0,0.08935]
[1728431641086,0.94364268,62256.0,62255.0,0.009]
[1728431641281,0.080355,62252.0,62251.0,0.080355]
[1728431641486,0.38799346,62252.0,62251.0,0.080355]
[1728431642486,0.38799346,62252.0,62251.0,0.089355]
[1728431642487,0.26899346,62252.0,62251.0,0.089355]
[1728431643196,0.26999346,62252.0,62251.0,0.092355]
[1728431644081,0.63079346,62252.0,62251.0,0.092355]
[1728431644782,0.70908132,62252.0,62251.0,0.012]
[1728431644987,0.7502828,62252.0,62251.0,0.012]
[1728431645890,0.89481235,62252.0,62251.0,0.012]
[1728431646195,0.7502828,62252.0,62251.0,0.012]
[1728431646493,0.77372565,62252.0,62251.0,0.012]
[1728431648493,1.64862565,62252.0,62251.0,0.012]
[1728431649990,1.69795404,62252.0,62251.0,0.012]
[1728431650191,1.64862565,62252.0,62251.0,0.012]
[1728431656412,1.69795394,62252.0,62251.0,0.012]
[1728431657093,1.84248349,62252.0,62251.0,0.012]
[1728431658297,1.84248349,62252.0,62251.0,0.00682636]
[1728431658505,1.69795394,62252.0,62251.0,0.00682636]
[1728431667299,1.85874144,62252.0,62251.0,0.00682636]
[1728431668400,1.73874144,62252.0,62251.0,0.00682636]
[1728431668611,1.57795394,62252.0,62251.0,0.00682636]
[1728431669904,1.57795394,62252.0,62251.0,0.08718236]
[1728431670214,1.57759986,62252.0,62251.0,0.08718236]
[1728431670417,1.57759986,62252.0,62251.0,0.04962866]
[1728431670713,0.70269986,62252.0,62251.0,0.04962866]
[1728431673206,0.86348736,62252.0,62251.0,0.04962866]
[1728431675214,0.86294296,62252.0,62251.0,0.04962866]
[1728431676319,0.70215546,62252.0,62251.0,0.04962866]
[1728431678021,0.6528279,62252.0,62251.0,0.04962866]
[1728431683010,0.2920279,62252.0,62251.0,0.04962866]
[1728431683216,0.6528279,62252.0,62251.0,0.04962866]
[1728431684122,0.080359,62249.0,62248.0,0.080357]
[1728431684318,0.26658905,62249.0,62248.0,0.080357]
[1728431685227,0.26659899,62249.0,62248.0,0.086357]
[1728431685526,0.26759899,62249.0,62248.0,0.086357]
[1728431686115,0.18723999,62249.0,62248.0,0.086357]
[1728431686319,0.14727919,62249.0,62248.0,0.086357]
[1728431687720,0.18840561,62249.0,62248.0,0.086357]
[1728431690318,0.18853473,62249.0,62248.0,0.086357]
[1728431692123,0.112,62249.0,62248.0,0.086357]
[1728431692329,0.18853587,62249.0,62248.0,0.086357]
[1728431695430,0.18854634,62249.0,62248.0,0.086357]
[1728431711442,0.54934634,62249.0,62248.0,0.086357]
[1728431712139,0.62970434,62249.0,62248.0,0.086357]
[1728431712339,0.62970434,62249.0,62248.0,0.006]
[1728431712646,0.79903304,62249.0,62248.0,0.006]
[1728431712949,0.94369013,62249.0,62248.0,0.006]
[1728431713153,0.88193304,62249.0,62248.0,0.006]
[1728431713338,0.88193304,62249.0,62238.0,0.084072]
[1728431713339,0.12,62239.0,62238.0,0.084072]
[1728431713541,0.70659195,62239.0,62238.0,0.080372]
[1728431713851,0.080373,62238.0,62234.0,0.080377]
[1728431714041,0.12,62235.0,62234.0,0.080377]
[1728431714341,0.26542095,62235.0,62234.0,0.080377]
[1728431715367,0.26642095,62235.0,62234.0,0.086377]
[1728431715858,0.30678916,62235.0,62234.0,0.086377]
[1728431716245,0.30778916,62235.0,62234.0,0.086377]
[1728431716443,0.30622095,62235.0,62234.0,0.086377]
[1728431716649,0.30722095,62235.0,62234.0,0.086377]
[1728431717056,0.18722095,62235.0,62234.0,0.086377]
[1728431717266,0.18722095,62235.0,62234.0,0.206377]
[1728431717959,0.18622095,62235.0,62234.0,0.200377]
[1728431720047,0.18622095,62235.0,62234.0,0.080377]
[1728431722658,0.18622095,62235.0,62231.0,0.10360423]
[1728431722865,0.12,62232.0,62231.0,0.080381]
[1728431723062,0.23,62232.0,62231.0,0.080381]
[1728431723460,0.31038,62232.0,62231.0,0.080381]
[1728431723661,0.34506108,62232.0,62231.0,0.080381]
[1728431723865,0.080382,62231.0,62228.0,0.08279433]
[1728431724169,0.12,62229.0,62228.0,0.00241033]
[1728431724360,0.23,62229.0,62228.0,0.02592924]
[1728431724766,0.23,62229.0,62228.0,0.08279533]
[1728431725654,0.231,62229.0,62228.0,0.08279533]
[1728431725868,0.232,62229.0,62228.0,0.08279533]
[1728431727569,0.232,62229.0,62228.0,0.00241033]
[1728431727763,0.080389,62226.0,62223.0,0.080391]
[1728431727956,0.12,62224.0,62223.0,0.080391]
[1728431728154,0.26440005,62224.0,62223.0,0.080391]
[1728431729168,0.26540005,62224.0,62223.0,0.080391]
[1728431730270,0.26521738,62224.0,62223.0,0.080391]
[1728431730771,0.26621738,62224.0,62223.0,0.080391]
[1728431731361,0.26521738,62224.0,62223.0,0.080391]
[1728431731557,0.26621738,62224.0,62223.0,0.080391]
[1728431732173,0.26521738,62224.0,62223.0,0.080391]
[1728431732372,0.26421738,62224.0,62223.0,0.080391]
[1728431733168,0.26421738,62224.0,62220.0,0.01133425]
[1728431733169,0.080394,62221.0,62220.0,0.01133425]
[1728431733476,0.671194,62221.0,62220.0,0.01133425]
[1728431734769,0.673194,62221.0,62220.0,0.01133425]
[1728431738375,0.6966826,62221.0,62220.0,0.01133425]
[1728431740866,0.73077077,62221.0,62220.0,0.01133425]
[1728431745195,0.73079535,62221.0,62220.0,0.01133425]
[1728431746590,0.36999535,62221.0,62220.0,0.01133425]
[1728431746781,0.73079535,62221.0,62220.0,0.01133425]
[1728431749674,0.77038414,62221.0,62220.0,0.01133425]
[1728431749869,0.73079535,62221.0,62220.0,0.01133425]
[1728431750084,0.77038176,62221.0,62220.0,0.01133425]
[1728431752382,0.77037097,62221.0,62220.0,0.01133425]
[1728431755390,0.77042813,62221.0,62220.0,0.01133425]
[1728431756286,0.8197799,62221.0,62220.0,0.01133425]
[1728431756493,0.96444418,62221.0,62220.0,0.01133425]
[1728431757377,0.8197799,62221.0,62220.0,0.01133425]
[1728431757574,0.6997799,62221.0,62220.0,0.01133425]
[1728431757779,0.96447337,62221.0,62220.0,0.09173025]
[1728431757978,0.8197799,62221.0,62220.0,0.09173025]
[1728431758691,0.96448111,62221.0,62220.0,0.09173025]
[1728431759578,0.4589799,62221.0,62220.0,0.09173025]
[1728431759779,0.4589788,62221.0,62220.0,0.09173025]
[1728431760202,0.60368001,62221.0,62220.0,0.09173025]
[1728431760493,0.60376106,62221.0,62220.0,0.09173025]
[1728431762588,0.60376106,62221.0,62217.0,0.01483989]
[1728431762589,0.080396,62220.0,62217.0,0.01483989]
[1728431762780,0.31351329,62220.0,62217.0,0.01483989]
[1728431764676,0.31551329,62220.0,62217.0,0.01483989]
[1728431765179,0.31530705,62220.0,62217.0,0.01483989]
[1728431765789,1.08626107,62220.0,62217.0,0.01483989]
[1728431765978,0.36466107,62220.0,62217.0,0.01483989]
[1728431766181,1.23095004,62220.0,62217.0,0.01483989]
[1728431766390,1.24703697,62220.0,62217.0,0.01483989]
[1728431766585,1.08626107,62220.0,62217.0,0.01483989]
[1728431767287,1.24703697,62220.0,62217.0,0.01483989]
[1728431768485,1.08626107,62220.0,62217.0,0.01483989]
[1728431770282,1.08627412,62220.0,62217.0,0.01483989]
[1728431773293,0.36467412,62220.0,62217.0,0.01483989]
[1728431773499,1.08627412,62220.0,62217.0,0.01483989]
[1728431774485,1.16687412,62220.0,62217.0,0.01483989]
[1728431774703,1.16687412,62220.0,62217.0,0.05523989]
[1728431774897,1.04687412,62220.0,62217.0,0.05523989]
[1728431775100,1.16687412,62220.0,62217.0,0.05523989]
[1728431775403,1.16679399,62220.0,62217.0,0.05523989]
[1728431777299,1.11743992,62220.0,62217.0,0.01483989]
[1728431778793,1.16679465,62220.0,62217.0,0.01483989]
[1728431780306,1.16658551,62220.0,62217.0,0.01483989]
[1728431786395,1.31127592,62220.0,62217.0,0.01483989]
[1728431787002,1.16658551,62220.0,62217.0,0.01483989]
[1728431789016,1.1665904,62220.0,62216.0,0.01409943]
[1728431789213,0.12,62217.0,62216.0,0.01409943]
[1728431789416,0.31323531,62217.0,62216.0,0.01409943]
[1728431789911,0.39363531,62217.0,62216.0,0.01409943]
[1728431790314,0.39363531,62217.0,62212.0,0.01222995]
[1728431790315,0.080405,62213.0,62212.0,0.01222995]
[1728431790618,0.661205,62213.0,62212.0,0.01222995]
[1728431790809,0.94457397,62213.0,62212.0,0.01222995]
[1728431791510,0.94557397,62213.0,62212.0,0.01222995]
[1728431791902,0.96821008,62213.0,62212.0,0.01222995]
[1728431793015,0.96921008,62213.0,62212.0,0.01222995]
[1728431793402,1.33001008,62213.0,62212.0,0.01222995]
[1728431794604,1.16923723,62213.0,62212.0,0.01222995]
[1728431796007,0.080407,62211.0,62208.0,0.01388629]
[1728431796206,0.20041,62209.0,62208.0,0.01388629]
[1728431796406,0.56763357,62209.0,62208.0,0.01388629]
[1728431796912,0.37364531,62209.0,62208.0,0.01388629]
[1728431797113,0.42300997,62209.0,62208.0,0.01388629]
[1728431797519,0.37364531,62209.0,62208.0,0.01388629]
[1728431798019,0.42301029,62209.0,62208.0,0.01388629]
[1728431798515,0.37364531,62209.0,62208.0,0.01388629]
[1728431799120,0.37464531,62209.0,62208.0,0.01388629]
[1728431800321,0.37404098,62209.0,62208.0,0.01388629]
[1728431800520,1.09564098,62209.0,62208.0,0.01388629]
[1728431802418,0.37404098,62209.0,62208.0,0.01388629]
[1728431802620,1.09564098,62209.0,62208.0,0.01388629]
[1728431806022,1.14500691,62209.0,62208.0,0.01388629]
[1728431806224,1.09564098,62209.0,62208.0,0.01388629]
[1728431808236,0.37404098,62209.0,62208.0,0.01388629]
[1728431808416,1.09564098,62209.0,62208.0,0.01388629]
[1728431809217,1.14500691,62209.0,62208.0,0.01388629]
[1728431810430,1.14507361,62209.0,62208.0,0.01388629]
[1728431812421,1.02301,62209.0,62208.0,0.01388629]
[1728431812627,1.14507708,62209.0,62208.0,0.01388629]
[1728431816038,1.30584993,62209.0,62208.0,0.01388629]
[1728431816419,1.14507708,62209.0,62208.0,0.01388629]
[1728431817430,1.30571487,62209.0,62208.0,0.01388629]
[1728431817729,1.14507708,62209.0,62208.0,0.01388629]
[1728431818335,1.30575025,62209.0,62208.0,0.01388629]
[1728431818631,1.14507708,62209.0,62208.0,0.01388629]
[1728431820333,0.97571115,62209.0,62208.0,0.21429729]
[1728431820523,0.9446658,62209.0,62208.0,0.21429729]
[1728431820721,1.0250758,62209.0,62208.0,0.09429729]
[1728431820926,1.16973932,62209.0,62208.0,0.09429729]
[1728431822120,1.0250758,62209.0,62208.0,0.09429729]
[1728431822526,1.02507196,62209.0,62208.0,0.09429729]
[1728431823425,0.97571115,62209.0,62208.0,0.09429729]
[1728431825537,0.97603266,62209.0,62208.0,0.09429729]
[1728431829236,0.97603266,62209.0,62208.0,0.01388629]
[1728431829625,1.02539398,62209.0,62208.0,0.01388629]
[1728431830032,1.1700575,62209.0,62208.0,0.01388629]
[1728431830232,1.02539398,62209.0,62208.0,0.01388629]
[1728431830533,1.1698933,62209.0,62208.0,0.01388629]
[1728431830940,1.02529006,62209.0,62208.0,0.01388629]
[1728431831533,1.16989395,62209.0,62208.0,0.01388629]
[1728431831935,1.02529006,62209.0,62208.0,0.01388629]
[1728431832236,1.16989408,62209.0,62208.0,0.01388629]
[1728431832433,1.16989422,62209.0,62208.0,0.01388629]
[1728431833238,1.02529006,62209.0,62208.0,0.01388629]
[1728431834337,1.16989798,62209.0,62208.0,0.01388629]
[1728431834641,0.66448666,62209.0,62208.0,0.01388629]
[1728431834951,0.73512776,62209.0,62208.0,0.01388629]
[1728431835442,0.73520661,62209.0,62208.0,0.01388629]
[1728431843737,0.78456805,62209.0,62208.0,0.01388629]
[1728431843942,0.73520661,62209.0,62208.0,0.01388629]
[1728431844337,0.78456821,62209.0,62208.0,0.01388629]
[1728431845048,0.42376821,62209.0,62208.0,0.01388629]
[1728431845242,0.78456821,62209.0,62208.0,0.01388629]
[1728431845647,0.92917613,62209.0,62208.0,0.01388629]
[1728431845852,0.78456821,62209.0,62208.0,0.01388629]
[1728431846648,0.92917613,62209.0,62208.0,0.01388629]
[1728431846843,0.56837613,62209.0,62208.0,0.01388629]
[1728431847146,0.92917613,62209.0,62208.0,0.01388629]
[1728431847747,0.73520661,62209.0,62208.0,0.01388629]
[1728431848450,0.78456818,62209.0,62208.0,0.01388629]
[1728431848649,0.9291761,62209.0,62208.0,0.01388629]
[1728431849456,0.9291761,62209.0,62208.0,0.02307629]
[1728431849656,0.78456818,62209.0,62208.0,0.02307629]
[1728431851158,0.78458941,62209.0,62208.0,0.02307629]
[1728431853053,0.92936608,62209.0,62208.0,0.02307629]
[1728431853966,0.78458941,62209.0,62208.0,0.02307629]
[1728431854663,0.92936834,62209.0,62208.0,0.02307629]
[1728431855563,0.92933147,62209.0,62208.0,0.02307629]
[1728431857360,0.78455254,62209.0,62208.0,0.02307629]
[1728431860872,0.78453715,62209.0,62208.0,0.02307629]
[1728431863771,0.42373715,62209.0,62208.0,0.02307629]
[1728431863968,0.78453715,62209.0,62208.0,0.02307629]
[1728431865670,0.7845616,62209.0,62208.0,0.02307629]
[1728431869778,0.4237616,62209.0,62208.0,0.02307629]
[1728431870179,0.7845616,62209.0,62208.0,0.02307629]
[1728431871987,0.4237616,62209.0,62208.0,0.02307629]
[1728431872181,0.7845616,62209.0,62208.0,0.02307629]
[1728431872583,0.66221,62209.0,62208.0,0.02307629]
[1728431872786,0.78457176,62209.0,62208.0,0.02307629]
[1728431873088,0.94529968,62209.0,62208.0,0.02307629]
[1728431875389,1.30609968,62209.0,62208.0,0.02307629]
[1728431875784,1.30608217,62209.0,62208.0,0.02307629]
[1728431878498,0.58448217,62209.0,62208.0,0.02307629]
[1728431878893,1.30608217,62209.0,62208.0,0.02307629]
[1728431880099,0.58448217,62209.0,62208.0,0.02307629]
[1728431880495,1.30608217,62209.0,62208.0,0.02307629]
[1728431880799,1.27248105,62209.0,62208.0,0.01388629]
[1728431880993,1.30608591,62209.0,62208.0,0.01388629]
[1728431881293,0.58448591,62209.0,62208.0,0.01388629]
[1728431881494,1.30608591,62209.0,62208.0,0.01388629]
[1728431883595,0.58448591,62209.0,62208.0,0.01388629]
[1728431884489,1.30608591,62209.0,62208.0,0.01388629]
[1728431885902,1.30609136,62209.0,62208.0,0.01388629]
[1728431890498,1.30605805,62209.0,62208.0,0.01388629]
[1728431891104,1.30604877,62209.0,62208.0,0.01388629]
[1728431892001,1.14532085,62209.0,62208.0,0.01388629]
[1728431895407,1.14532085,62209.0,62208.0,0.02307629]
[1728431895603,0.42372085,62209.0,62208.0,0.02307629]
[1728431895809,0.78452085,62209.0,62208.0,0.02307629]
[1728431896109,0.78458676,62209.0,62208.0,0.02307629]
[1728431900314,0.42378676,62209.0,62208.0,0.02307629]
[1728431900707,0.78458676,62209.0,62208.0,0.02307629]
[1728431901210,0.42377201,62209.0,62208.0,0.02307629]
[1728431901417,0.78457201,62209.0,62208.0,0.02307629]
[1728431903215,0.42377201,62209.0,62208.0,0.02307629]
[1728431903419,0.78457201,62209.0,62208.0,0.02307629]
[1728431906917,0.42377201,62209.0,62208.0,0.02307629]
[1728431907307,0.78457201,62209.0,62208.0,0.02307629]
[1728431908216,0.58416201,62209.0,62208.0,1.18572729]
[1728431908421,0.58416201,62209.0,62208.0,1.30572729]
[1728431908422,0.17400052,62209.0,62208.0,1.30572729]
[1728431908907,0.37441052,62209.0,62208.0,0.10348729]
[1728431909106,0.7845694,62209.0,62208.0,0.02307629]
[1728431909314,0.92938181,62209.0,62208.0,0.02307629]
[1728431909527,0.7845694,62209.0,62208.0,0.02307629]
[1728431912022,0.4237694,62209.0,62208.0,0.02307629]
[1728431912223,1.1453694,62209.0,62208.0,0.02307629]
[1728431912425,1.16864513,62209.0,62208.0,0.02307629]
[1728431913610,0.44704513,62209.0,62208.0,0.02307629]
[1728431913812,1.16864513,62209.0,62208.0,0.02307629]
[1728431920924,0.44704513,62209.0,62208.0,0.02307629]
[1728431921124,1.16864513,62209.0,62208.0,0.02307629]
[1728431921329,1.1685789,62209.0,62208.0,0.02307629]
[1728431921625,0.4469789,62209.0,62208.0,0.02307629]
[1728431921925,1.1685789,62209.0,62208.0,0.02307629]
[1728431925224,0.4469789,62209.0,62208.0,0.02307629]
[1728431925430,1.1685789,62209.0,62208.0,0.02307629]
[1728431926329,1.16856207,62209.0,62208.0,0.02307629]
[1728431926728,1.16856207,62209.0,62208.0,0.01388629]
[1728431927426,0.44696207,62209.0,62208.0,0.01388629]
[1728431927622,1.16856207,62209.0,62208.0,0.01388629]
[1728431929929,0.44696207,62209.0,62208.0,0.01388629]
[1728431930125,1.16856207,62209.0,62208.0,0.01388629]
[1728431930727,1.32928999,62209.0,62208.0,0.01388629]
[1728431931426,1.32923505,62209.0,62208.0,0.01388629]
[1728431932424,0.60763505,62209.0,62208.0,0.01388629]
[1728431932629,1.32923505,62209.0,62208.0,0.01388629]
[1728431932929,1.32922221,62209.0,62208.0,0.01388629]
[1728431935426,1.16849429,62209.0,62208.0,0.01388629]
[1728431936033,1.32922221,62209.0,62208.0,0.01388629]
[1728431936231,1.16849429,62209.0,62208.0,0.01388629]
[1728431936427,0.60773161,62209.0,62208.0,0.01388629]
[1728431936631,1.32933161,62209.0,62208.0,0.01388629]
[1728431938530,1.16849429,62209.0,62208.0,0.01388629]
[1728431939233,1.32933161,62209.0,62208.0,0.01388629]
[1728431940431,1.47411775,62209.0,62208.0,0.01388629]
[1728431940631,1.31328043,62209.0,62208.0,0.01388629]
[1728431941031,1.31328043,62209.0,62208.0,0.02307629]
[1728431941436,1.23287043,62209.0,62208.0,0.02307629]
[1728431941633,1.11066187,62209.0,62208.0,0.02307629]
[1728431941835,1.23282759,62209.0,62208.0,0.02307629]
[1728431942035,1.23282759,62209.0,62208.0,0.10348729]
[1728431942924,1.08804145,62209.0,62208.0,0.10348729]
[1728431944635,1.08804145,62209.0,62208.0,0.02307629]
[1728431945533,1.23282759,62209.0,62208.0,0.02307629]
[1728431946339,1.08804145,62209.0,62208.0,0.02307629]
[1728431946537,1.23281192,62209.0,62208.0,0.02307629]
[1728431946740,1.23281192,62209.0,62207.0,0.01068337]
[1728431946741,2.17023688,62209.0,62207.0,0.01068337]
[1728431946945,0.60436322,62208.0,62206.0,0.01457505]
[1728431947235,0.12212322,62207.0,62206.0,0.01457505]
[1728431947541,0.70440322,62207.0,62206.0,0.01457505]
[1728431947844,1.30440322,62207.0,62206.0,0.01457505]
[1728431948035,1.38481522,62207.0,62206.0,0.01457505]
[1728431948843,1.54565254,62207.0,62206.0,0.01457505]
[1728431949637,1.38581522,62207.0,62206.0,0.01457505]
[1728431950038,1.42571522,62207.0,62206.0,0.01457505]
[1728431950236,1.54571522,62207.0,62206.0,0.01457505]
[1728431950641,2.26831522,62207.0,62206.0,0.01457505]
[1728431952141,3.14321522,62207.0,62206.0,0.01457505]
[1728431953152,3.20090555,62207.0,62206.0,0.00309058]
[1728431955469,3.37751814,62207.0,62206.0,0.00309058]
[1728431957965,2.50261814,62207.0,62206.0,0.00309058]
[1728431958474,2.44492781,62207.0,62206.0,0.00309058]
[1728431958670,2.26831522,62207.0,62206.0,0.00309058]
[1728431959965,2.22841522,62207.0,62206.0,0.00309058]
[1728431961772,1.62841522,62207.0,62206.0,0.00309058]
[1728431962171,1.62841959,62207.0,62206.0,0.00309058]
[1728431963171,1.57904852,62207.0,62206.0,0.00309058]
[1728431963375,1.45904852,62207.0,62206.0,0.00309058]
[1728431963564,1.62841966,62207.0,62206.0,0.00309058]
[1728431963965,2.02103966,62207.0,62206.0,0.00309058]
[1728431964870,1.94062766,62207.0,62206.0,0.00309058]
[1728431965966,1.21902766,62207.0,62206.0,0.00309058]
[1728431966167,1.94062766,62207.0,62206.0,0.00309058]
[1728431967471,2.10117153,62207.0,62206.0,0.00309058]
[1728431968275,1.94062766,62207.0,62206.0,0.00309058]
[1728431968781,2.11724025,62207.0,62206.0,0.00185774]
[1728431969678,2.17492955,62207.0,62206.0,0.00185774]
[1728431969879,1.30002955,62207.0,62206.0,0.00185774]
[1728431970871,1.12341696,62207.0,62206.0,0.00185774]
[1728431971671,1.12294593,62207.0,62206.0,0.00185774]
[1728431972889,1.24202027,62207.0,62206.0,0.00185774]
[1728431973268,1.29970961,62207.0,62206.0,0.00185774]
[1728431974666,1.12294597,62207.0,62206.0,0.00185774]
[1728431975278,1.20335797,62207.0,62206.0,0.00185774]
[1728431978677,1.20335797,62207.0,62206.0,0.00111693]
[1728431982672,0.48075797,62207.0,62206.0,0.00111693]